{"text_format":"1","workbook":"xlsx","n_sheets":6,"sheets":["Rozpočet F1","Rozpočet F2","Rozpočet F3","Komentáre","Inštrukcie","Číselník"],"not_rendered":{"charts":0,"images":3,"macros":1,"external_links":0,"defined_names":22,"comments":1,"pivot_tables":0},"unopened":[],"bounds":{"document_bytes":16777216,"sheet_cells":100000,"rows_first":2000,"rows_last":500,"rows_between":2000,"halvings":0,"cell_chars":16384,"cell_head_chars":4096},"cells_cut":0,"cells_raw":0,"read":"whole","date_system":"1900"}

{"sheet":"Rozpočet F1","index":0,"n_rows":24,"n_cols":18,"rows_kept":24,"cut":false,"hidden":false,"merged":[[16,0,18,0],[8,0,8,11],[2,2,2,7],[3,2,3,7],[4,2,4,7]]}
[null,"Rozpočet projektu (príloha č. 2 Formulára Žiadosti)"]
[null,null,"F1",null,null,null,null,null,"Plátca DPH","Áno"]
["Názov subjektu"]
["Typ podporovanej aktivity",null,"Investície VÚ KVET založenej na OZE"]
["Vyberte veľkostnú kategoriu podniku",null,"Veľký podnik"]
[null,null,null,null,null,null,null,null,null,null,null,null,null,null,null,"F1","Výška a intenzita pomoci ",{"$f":"INDEX(Číselník!C17:E18,MATCH(C4,Číselník!$B$17:$B$18,),MATCH(C5,Číselník!C16:E16))","v":0.45}]
["ČRP","Kód Aktivity","Názov položky","Skupina výdavkov","Merná jednotka",{"$f":"_xlfn.CONCAT(\"Jednotková cena\",CHAR(10),\"[\",INDEX(komentar_dph,_xlfn.XMATCH($J$2,platca_DPH)),\"]\")","v":"Jednotková cena\n[bez DPH]"},"Počet jednotiek",{"$f":"_xlfn.CONCAT(\"Cena celkom\",CHAR(10),\"[\",INDEX(komentar_dph,_xlfn.XMATCH($J$2,platca_DPH)),\"]\")","v":"Cena celkom\n[bez DPH]"},"kód Merateľného ukazovateľa","Poznámka k Merateľnému ukazovateľu",{"$f":"_xlfn.CONCAT(\"Merateľný ukazovateľ\",CHAR(10),\"[%]\")","v":"Merateľný ukazovateľ\n[%]"},{"$f":"_xlfn.CONCAT(\"Žiadateľ:\",CHAR(10),C3)","v":"Žiadateľ:\n"}]
[null,"Výdavky (náklady) projektu"]
["Aktivita F1"]
[null,"F1",null,null,null,1000,1,{"$f":"F10*G10","v":1000},null,null,{"$f":"IF(ISBLANK(I10),\"\",IF(H10>0,H10/SUMIF($I$10:$I$16,I10,$H$10:$H$16),\"\"))","v":""},{"$f":"F10*G10","v":1000}]
[null,null,null,null,null,null,null,{"$f":"F11*G11","v":0},null,null,"",{"$f":"F11*G11","v":0}]
[null,null,null,null,null,null,null,0,null,null,"",0]
[null,null,null,null,null,null,null,0,null,null,"",0]
[null,null,null,null,null,null,null,0,null,null,"",0]
[null,null,null,null,null,null,null,0,null,null,"",{"$f":"F15*G15","v":0}]
[null,null,null,null,null,null,null,0,null,null,"",0]
[{"$f":"C4","v":"Investície VÚ KVET založenej na OZE"},"% dotácie",null,null,null,null,null,null,null,null,null,{"$f":"IFERROR(SUM(L10:L16)*(1-L18)/L19,0)","v":0.44999999999999996}]
[null,"% vlastné zdroje",null,null,null,null,null,null,null,null,null,{"$f":"1-R6","v":0.55000000000000004}]
[null,"Spolu COV",null,null,null,null,null,null,null,null,null,{"$f":"SUM(L10:L16)","v":1000}]
[null,"Celkom dotácia z EF",null,null,null,null,null,null,null,null,null,{"$f":"L17*L19","v":449.99999999999994}]
[]
[null,"Spolu výška dotácie za projekt",null,null,null,null,null,null,null,null,null,{"$f":"L20","v":449.99999999999994}]
[null,"Spolu vlastné zdroje",null,null,null,null,null,null,null,null,null,{"$f":"L24-L22","v":550}]
[null,"Spolu COV (dotácia + vlastné zdroje) za projekt",null,null,null,null,null,null,null,null,null,{"$f":"L19","v":1000}]

{"sheet":"Rozpočet F2","index":1,"n_rows":27,"n_cols":18,"rows_kept":27,"cut":false,"hidden":false,"merged":[[2,2,2,7],[18,0,21,0],[10,0,10,11],[3,2,3,7],[4,2,4,7]]}
[null,"Rozpočet projektu (príloha č. 2 Formulára Žiadosti)"]
[null,null,"F2",null,null,null,null,null,"Plátca DPH","Áno"]
["Názov subjektu"]
["Typ podporovanej aktivity",null,"Ostatné investície na podporu energeticky účinného CZT"]
["Vyberte veľkostnú kategoriu podniku",null,"Veľký podnik"]
["Vyberte relevanciu Kontrafaktuálu","Áno"]
["Zadajte výšku percenta dotácie pre kontrafaktuál ",0.3,null,null,null,null,null,null,null,null,null,null,null,null,null,"F1","Výška a intenzita pomoci ",{"$f":"INDEX(Číselník!C17:E18,MATCH(lokalita,Číselník!$B$17:$B$18,),MATCH(podnik,Číselník!C16:E16))","v":{"$error":"#REF!"}}]
[]
["ČRP","Kód Aktivity","Názov položky","Skupina výdavkov","Merná jednotka",{"$f":"_xlfn.CONCAT(\"Jednotková cena\",CHAR(10),\"[\",INDEX(komentar_dph,_xlfn.XMATCH($J$2,platca_DPH)),\"]\")","v":"Jednotková cena\n[bez DPH]"},"Počet jednotiek",{"$f":"_xlfn.CONCAT(\"Cena celkom\",CHAR(10),\"[\",INDEX(komentar_dph,_xlfn.XMATCH($J$2,platca_DPH)),\"]\")","v":"Cena celkom\n[bez DPH]"},"kód Merateľného ukazovateľa","Poznámka k Merateľnému ukazovateľu",{"$f":"_xlfn.CONCAT(\"Merateľný ukazovateľ\",CHAR(10),\"[%]\")","v":"Merateľný ukazovateľ\n[%]"},{"$f":"_xlfn.CONCAT(\"Žiadateľ:\",CHAR(10),C3)","v":"Žiadateľ:\n"},null,null,null,"F2","Výška a intenzita pomoci ",{"$f":"INDEX(Číselník!C23:E24,MATCH(C4,Číselník!$B$23:$B$24,),MATCH(C5,Číselník!C22:E22))","v":0.3}]
[null,"Výdavky (náklady) projektu"]
["Aktivita F2"]
[null,"F2",null,"021 - Stavby","projekt",500000,1,{"$f":"F12*G12","v":500000},null,null,{"$f":"IF(ISBLANK(I12),\"\",IF(H12>0,H12/SUMIF($I$24:$I$30,I12,$H$24:$H$30),\"\"))","v":""},{"$f":"F12*G12","v":500000}]
[null,null,null,null,null,null,null,{"$f":"F13*G13","v":0},null,null,{"$f":"IF(ISBLANK(I13),\"\",IF(H13>0,H13/SUMIF($I$24:$I$30,I13,$H$24:$H$30),\"\"))","v":""},{"$f":"F13*G13","v":0}]
[null,null,null,null,null,null,null,0,null,null,"",0]
[null,null,null,null,null,null,null,0,null,null,"",0]
[null,null,null,null,null,null,null,0,null,null,"",0]
[null,null,null,null,null,null,null,0,null,null,"",0]
[null,null,null,null,null,null,null,0,null,null,"",0]
[{"$f":"C4","v":"Ostatné investície na podporu energeticky účinného CZT"},"% dotácie","pre kontrafaktuál",null,null,null,null,null,null,null,null,{"$f":"IF(B6=Číselník!H3,0,B7)","v":0.3}]
[null,"% dotácie",null,null,null,null,null,null,null,null,null,{"$f":"IF(B6<>\"Áno\",IFERROR(SUM(L12:L18)*(1-L21)/L22,0),\"0,00%\")","v":"0,00%"}]
[null,"% vlastné zdroje",null,null,null,null,null,null,null,null,null,{"$f":"IF(B6<>\"Áno\",1-R9,1-L19)","v":0.7}]
[null,"Spolu COV",null,null,null,null,null,null,null,null,null,{"$f":"SUM(L12:L18)","v":500000}]
[null,"Celkom dotácia z EF",null,null,null,null,null,null,null,null,null,{"$f":"IF(B6<>\"Áno\",IFERROR(L22*L20,\"N/A\"),L22*L19)","v":150000}]
[]
[null,"Spolu výška dotácie za projekt",null,null,null,null,null,null,null,null,null,{"$f":"L23","v":150000}]
[null,"Spolu vlastné zdroje",null,null,null,null,null,null,null,null,null,{"$f":"L27-L25","v":350000}]
[null,"Spolu COV (dotácia + vlastné zdroje) za projekt",null,null,null,null,null,null,null,null,null,{"$f":"L22","v":500000}]

{"sheet":"Rozpočet F3","index":2,"n_rows":23,"n_cols":12,"rows_kept":23,"cut":false,"hidden":false,"merged":[[7,0,7,11],[2,2,2,7]]}
[null,"Rozpočet projektu (príloha č. 2 Formulára Žiadosti)"]
[null,null,"F3"]
["Názov subjektu"]
[]
[]
["ČRP","Kód Aktivity","Názov položky","Skupina výdavkov","Merná jednotka",{"$f":"'Rozpočet F2'!F9","v":"Jednotková cena\n[bez DPH]"},"Počet jednotiek",{"$f":"'Rozpočet F2'!H9","v":"Cena celkom\n[bez DPH]"},"kód Merateľného ukazovateľa","Poznámka k Merateľnému ukazovateľu",{"$f":"_xlfn.CONCAT(\"Merateľný ukazovateľ\",CHAR(10),\"[%]\")","v":"Merateľný ukazovateľ\n[%]"},{"$f":"_xlfn.CONCAT(\"Žiadateľ:\",CHAR(10),C3)","v":"Žiadateľ:\n"}]
[null,"Výdavky (náklady) projektu"]
["Aktivita F3 - kombinácia"]
[null,null,null,null,null,null,null,{"$f":"F9*G9","v":0},null,null,{"$f":"IF(ISBLANK(I9),\"\",IF(H9>0,H9/SUMIF($I$31:$I$37,I9,$H$31:$H$37),\"\"))","v":""},{"$f":"F9*G9","v":0}]
[null,null,null,null,null,null,null,{"$f":"F10*G10","v":0},null,null,{"$f":"IF(ISBLANK(I10),\"\",IF(H10>0,H10/SUMIF($I$31:$I$37,I10,$H$31:$H$37),\"\"))","v":""},{"$f":"F10*G10","v":0}]
[null,null,null,null,null,null,null,0,null,null,{"$f":"IF(ISBLANK(I11),\"\",IF(H11>0,H11/SUMIF($I$31:$I$37,I11,$H$31:$H$37),\"\"))","v":""},0]
[null,null,null,null,null,null,null,0,null,null,{"$f":"IF(ISBLANK(I12),\"\",IF(H12>0,H12/SUMIF($I$31:$I$37,I12,$H$31:$H$37),\"\"))","v":""},0]
[null,null,null,null,null,null,null,0,null,null,"",{"$f":"F13*G13","v":0}]
[null,null,null,null,null,null,null,0,null,null,"",0]
[null,null,null,null,null,null,null,0,null,null,"",0]
[null,"% dotácie",null,null,null,null,null,null,null,null,null,{"$f":"('Rozpočet F1'!L22+'Rozpočet F2'!L25)/L23","v":0.30029940119760479}]
[null,"% vlastné zdroje",null,null,null,null,null,null,null,null,null,{"$f":"1-L16","v":0.69970059880239521}]
[null,"Spolu COV",null,null,null,null,null,null,null,null,null,{"$f":"'Rozpočet F1'!L19+'Rozpočet F2'!L22","v":501000}]
[null,"Celkom dotácia z EF",null,null,null,null,null,null,null,null,null,{"$f":"'Rozpočet F1'!L20+'Rozpočet F2'!L23","v":150450}]
[]
[null,"Spolu výška dotácie za projekt",null,null,null,null,null,null,null,null,null,{"$f":"L19","v":150450}]
[null,"Spolu vlastné zdroje",null,null,null,null,null,null,null,null,null,{"$f":"L23-L21","v":350550}]
[null,"Spolu COV (dotácia + vlastné zdroje) za projekt",null,null,null,null,null,null,null,null,null,{"$f":"L18","v":501000}]

{"sheet":"Komentáre","index":3,"n_rows":1,"n_cols":3,"rows_kept":1,"cut":false,"hidden":false,"merged":[]}
["Č.R.P.","Kód aktivity","Popis komentára k rozpočtovej položke"]

{"sheet":"Inštrukcie","index":4,"n_rows":29,"n_cols":2,"rows_kept":29,"cut":false,"hidden":false,"merged":[[15,0,16,0]]}
[]
["Overenie stanovených percentuálnych limitov*"]
["Stavebné práce ","z celkových oprávnených výdavkov projektu"]
["Samostatné hnuteľné veci a súbory hnuteľných vec","z celkových oprávnených výdavkov projektu"]
["Softvér","z celkových oprávnených výdavkov projektu"]
["Zásoby","z celkových oprávnených výdavkov projektu"]
["Mzdové výdavky - súvisiace so stavebnými prácami (Stavebný dozor, odborný autorský dohľad)","z celkových oprávnených výdavkov projektu na stavebné práce:\nstavebný dozor - max. 2,5 %\nodborný aturoský dohľad - 1,5 %\n- v rámci „Interných zamestnancov (TPP resp. Dohoda)“ je pracovný fond max. 160 hod./mesiac\n- potrebné rozpísať v komentári."]
["Mzdové výdavky - súvisiace s riadením projektu (Projektový manažér, Finančný manažér)"," z celkových oprávnených výdavkov projektu max. 5 %:\n- v rámci „Interných zamestnancov (TPP resp. Dohoda)“ je pracovný fond max. 160 hod./mesiac\n- potrebné rozpísať v komentári."]
["Ostatné služby","v prípade výdavkov na Publicitu a informovanosť je stanovený celkový limit - max. 20 tis. EUR\n- v prípade projektovej (realizačnej) dokumentácie - max. 1 % z celkových oprávnených výdavkov projektu určených na stavebné práce.\n- potrebné rozpísať v komentári.\n"]
[]
[]
["* Všetky stanovené limity sú bližšie špecifikované v prílohe č. 3 výzvy - Zoznam O a N výdavkov"]
[]
["Inštrukcie pre žiadateľa k vypĺňaniu rozpočtu projektu"]
["Typ podporovanej aktivity\nŽiadateľ vyberie typ podporovanej aktivity z ponuky možností: \nAktivita F1: iba z dvoch prededefinovaných typov aktivít.\n\nAktivity F2: z dvoch prededefinovaných typov aktivít, alebo zvolí možnosť kontrafaktuálny scenár (\"kontrafaktuál\").\n\n\n\n\n"]
["Veľkostná kategoria podniku\nŽiadateľ sa zaradí podľa toho aký je typ podniku (roletové menu), pričom v rámci typu podniku - \"malý podnik\" je zároveň aj \"mikro podnik\".\n\nPre Aktivitu F1:\n\nInvestície VÚ KVET založenej na OZE:\n\n- Mikro/ Malý podnik: 65 %\n- Stredný podnik: 55 %\n- Veľký podnik: 45 %\n\nOstatné investície VÚ KVET:\n\n- Mikro/ Malý podnik: 50 %\n- Stredný podnik: 40 %\n- Veľký podnik: 30 %\n\nPre Aktivitu F2:\n \nInvestície využívajúce iba OZE, odpadové teplo, kombinácia oboch vrártane obnovitešnej VÚ KVET:\n\n- Mikro/ Malý podnik: 65 %\n- Stredný podnik: 55 %\n- Veľký podnik: 45 %\n\nOstatné investície na podporu energeticky účinného CZT\n\n- Mikro/ Malý podnik: 50 %\n- Stredný podnik: 40 %\n- Veľký podnik: 30 %\n\nKontrafaktuál:\n\nV rámci spolufinancovania VP je možné dosiahnuť prostredníctvom kontrafaktuálneho scenára max. výšku 50 % (Bližšie špecifikované v prílohe výzvy č. 3 Zoznam oprávnených a neoprávnených výdavkov, bod č. 2).\n\nPre Aktivitu F3:\n\nŽiadateľ musí vždy podrobne vyplniť záložky: Rozpočet F1 a Rozpočet F2.\nKombinácia inteznzity pomoci z aktivity F1 a aktivity F2 sa napočítava automaticky zo záložiek Rozpočet F1 a Rozpočet F2 do záložky Rozpočet F3 (Aktivita F3 - kombinácia). \n\nV rámci bunky - \"Spolu vlastné zdroje\", kde sa automaticky vypočítajú celkovo vlastné zdroje pre Aktivitu F3, ide iba o orientačnú priemernú percentuálnu hodnotu, pričom v rámci implementácie projektu sa budú jednotlivé položky uhrádzať spolu s reálnou precentuálnou hodnotou vlastných zdrojov (spolufinancovanie) stanovenou žiadateľom v zmysle Výzvy .\n\n"]
[]
["ČRP\n1. Číslo rozpočtovej položky - je preddefinované a v prípade viacerých položiek v rámci danej aktivity napr. F1 je potrebné postupovať chronologicky, napr. po ČRP č. 1.4 bude nasledovať 1.5...\n\nPokiaľ žiadateľ upraví počet riadkov pridá resp. odstráni riadky, upraví tiež ČRP pri jednotlivých položkách. Riadky je potrebné vkladať tak, aby celkový súčet zahŕňal aj novovložené riadky. Zároveň novovložené bunky upraví tak, aby obsahovali preddefinované údaje (roletové menu ako aj vzorce)."]
["Kód Aktivity\nŽiadateľ vypĺňa iba pre záložky: Rozpočet F1 a Roztpočet F2.\n2. Do stĺpca \"Kód Aktivity\" sa uvedeie označenie aktivity v súlade s výzvou. \nŽiadateľ si môže v rámci projektu zvoliť nasledovné typy aktivít s príslušným označením, a to:\n\nF.1\nF.2"]
["Názov položky\n3. Do stĺpca \"Názov položky\" použiť stručný názov výdavku, ktorý jednoznačne vystihuje jeho podstatu. Pri softvéroch, samostatne hnuteľných veciach a zásobách nepoužívať presné názvy značiek a pomenovanie výrobcu. \nV prípade \"stavebných prác\" žiadateľ uvedie celú sumu do jednej kumulovanej položky s názvom - \"stavebné práce\", pričom môže priložiť nacenený výkaz výmer podpísaný a opečiatkovaný od relevantného spracovateľa (ak relevantné).\nV rámci mzdových výdavkov žiadateľ uvádza každú \"pozíciu\" v samostatnom riadku, a zároveň postupuje podľa inštrukcií uvedených v tejto záložke pod názvom: \"Overenie stanovených percentuálnych limitov*\"."]
["Skupina výdavkov\n4. V rámci stanovenia skupiny výdavkov je možné použiť len skupiny výdavkov z roletového menu podľa preddefinovaného zoznamu v súlade s prílohou  výzvy  č. 3 (Zoznam oprávnených a neoprávnených výdavkov) výzvy a v zmysle záložky - \"Číselník\"."]
["Merná jednotka\n5. V stĺpci \"Merná jednotka\" je možné použiť merné jednotky len podľa preddefinovaného zoznamu  v zmysle záložky - \"Číselník\". Odporúčame žiadaeľovi, aby pri položke \"stavebné práce\" a \"zásoby\" zvolil mernú jednotku - \"Projekt\"."]
["Jednotková cena\n6 Jednotkovú cenu uvádzať vždy na dve desatinné miesta. \n. A) Pokiaľ žiadateľ je pomerným platcom DPH podľa §49 zákona č. 222/2004 Z.z. o dani z pridanej hodnoty, jednotková cena je vrátane DPH, v komentári k príslušnej podpoložke sa uvedie, že \"Výdavok podlieha aktuálne platnému koeficientu DPH stanovenému daňovým úradom“. \nB) Pokiaľ žiadateľ je platcom DPH podľa §49 zákona č. 222/2004 Z.z. o dani z pridanej hodnoty, jednotková cena je bez DPH. C) Pokiaľ žiadateľ nie je platcom DPH podľa §49 zákona č. 222/2004 Z.z. o dani z pridanej hodnoty, jednotková cena je vrátane DPH."]
["Počet jednotiek\n7. V stĺpci \"Počet jednotiek\" sa uvedie vždy na dve desatinné miesta, nie %.\nOdporúčame žiadaeľovi, aby pri položke \"stavebné práce\", \"zásoby\" a \"publicita a informovanosť (rozpíše podbrobnejšie v komentáre)\" zvolil počet celkovo - \"1\""]
["Kód Merateľného ukazovateľa\n8. V stĺpci \"Kód Merateľného ukazovateľa\" žiadateľ označí prostredníctvom ktorých rozpočtových položiek zahrnutých v rozpočte projetku plánuje plniť merateľný ukazovateľ. Žiadateľ vyberie z preddefinovaného zoznamu konkrétny merateľný ukazovateľ. \n\nV rámci Merateľných ukazovateľov: MU001 a MU002 žiadateľ v rámci RP uvedie samostatne názov rozpočtovej položky:\n\"Stavebné práce (rekonštrukcia)\" - MU001 a \"Stavebné práce (nové)\"."]
["Poznámka k Merateľnému ukazovateľu\n9. V prípade, že jedna rozpočtová položka sa týka viacero merateľných ukazovateľov v rámci danej aktivity, žiadateľ do stĺpca s názvom \" kód Merateľného ukazovateľa\" vyberie jeden ukazovateľ a ostatné vypíše ako kódy do stĺpca \"Poznámka k Merateľnému ukazovateľu\"."]
["Merateľný ukazovateľ v %\n10. V stĺpci \"Merateľný ukazovateľ v %\" - žiadateľovi sa vypočíta percentuálny podiel vybraného merateľného ukazovateľa k danej rozpočtovej položke.\n\n\n"]
["Žiadateľ (názov subjektu)\n11. V danej bunke žiadateľ vypíše presný názov subjektu, za ktorý bude predkladať žiadosť o dotáciu."]
["Kometáre (hárok č, 2)\n12. V danom hárku žiadateľ vypĺňa k jednotlivým rozpočtovým položkám stručný popis, napr. je potrebné, aby pri mzdovom výdavku - \"Projektový manažér\" bol stanovený popis výpočtu sumy určenej na tento výdavok, a to v prípade ak je na TPP, dohodu, ale aj na faktúru, taktiež zvlášť uvedie položku - \"Projektová dokumentácia\". \nPri položke \"Publicita a Informovanosť\" je potrebné do komentára uviesť približný počet oprávnených výdavkov (napr. 2 x veľkoplošná tabuľa - 5 000,00 EUR, 250 ks lepiek a štítkov - 500,00 EUR...)."]

{"sheet":"Číselník","index":5,"n_rows":31,"n_cols":12,"rows_kept":31,"cut":false,"hidden":false,"merged":[]}
["Priame výdavky","Výdavky (náklady) projektu","Merné jednotky","Kód podporných aktivít","kód MU","Merné jednotky MU",null,"DPH","Komentár"]
["014 - Oceniteľné práva","013 - Softvér","projekt","F1","MU001","EUR",null,"Áno","bez DPH",null,"Max výška kontrafaktuálu",0.5]
["019 - Ostatný dlhodobý nehmotný majetok","021 - Stavby","ks","F2","MU002","EUR",null,"Nie","s DPH"]
["021 - Stavby","022 - Samostatné hnuteľné veci a súbory hnuteľných vec","meter","F3","MU003","EUR"]
["022 - Samostatné hnuteľné veci a súbor hnuteľných vecí","112 - Zásoby","súbor",null,"MU004","EUR"]
["023 - Dopravné prostriedky","112 - Zásoby","osobohodina",null,"MU005","EUR"]
["029 - Ostatný dlhodobný hmotný majetok","518 - Ostatné služby","osobomesiac",null,"MU006","EUR"]
["112 - Zásoby","521 -Mzdové výdavky",null,null,"MU007","EUR"]
["502 - Spotreba energie",null,null,null,"MU008","EUR"]
["503 - Spotreba ostatných neskladovateľných dodávok"]
["511 - Opravy a udržiavanie"]
["512 - Cestovné náhrady"]
["518 - Ostatné služby"]
["521 - Mzdové výdavky"]
["548 - Výdavky na prevádzkovú činnosť","F1"]
["551 - Odpisy","lokalita","Malý Podnik","Stredný podnik","Veľký podnik"]
["568 - Ostatné finančné výdavky","Investície VÚ KVET založenej na OZE",0.65,0.55000000000000004,0.45]
[null,"Ostatné investície VÚ KVET",0.5,0.4,0.3]
[]
[]
[null,"F2"]
[null,"lokalita","Malý Podnik","Stredný podnik","Veľký podnik"]
[null,"Investície využívajúce iba OZE, odpadové teplo, kombinácia oboch vrátane obnoviteľnej VÚ KVET",0.65,0.55000000000000004,0.45]
[null,"Ostatné investície na podporu energeticky účinného CZT",0.5,0.4,0.3]
[]
[]
[null,"F3","Malý Podnik","Stredný podnik","Veľký podnik"]
[null,null,"Kombinácia intenzity pomoci z aktivity F1 a aktivity F2 - žiadateľ uvádza pri  každej rozpočtovej položke výšku intenzity pomoci samostatne, a teda podľa toho, do akej aktivity oprávnený výdavok spadá."]
[null,null,"Výšku spolufinancovania je možné editovať."]
[null,null,"Spolu vlastné zdroje, kde sa automaticky vypočítajú celkovo vlastné zdroje pre Aktivitu F3, ide iba o orientačnú priemernú percentuálnu hodnotu, "]
[null,null,"pričom v rámci implementácie projektu sa budú jednotlivé položky uhrádzať spolu s reálnou precentuálnou hodnotou vlastných zdrojov (spolufinancovanie) stanovenou žiadateľom v zmysle Výzvy ."]